Cogmind - Beta 15 @@@ ROGUE MODE // 2025.06.08 @ 00:29:45 Player: Zaros426 Result: Destroyed by Striker with Plasma Lance Performance ------------- Evolutions (5) 2500 Regions Visited (14) 2800 Robots Destroyed (185) 925 Value Destroyed (7044) 7044 Prototype IDs (65) 1300 Alien Tech Used (1) 200 Bonus (5322) 5322 TOTAL SCORE: 20091 Bonus ------- High Alert Combat Kills 755 Follower Combat Kills 322 Registered with UFD 300 Met Optimus in HQ 500 Met Data Miner 300 Met Warlord at Base 500 MAIN.C Attacked Warlord 500 Warlord Defense Kills 2372 Friendly Fire -227 Cogmind --------- Core Integrity 0/1000 Matter 300/300 Energy 58/100 System Corruption 1% Temperature Cool (0) Movement Core (50) Location -5/Warlord Parts ------- > --- POWER (1) -------- (None) > --- PROPULSION (6) --- (None) > --- UTILITY (8) ------ Enhanced Optical Array Experimental Target Analyzer Core Analyzer > --- WEAPON (3) ------- (None) > --- INVENTORY (5) ---- Coolant Network Heart of Steel Peak State ------------ > --- POWER ------------ Neutrino Core > --- PROPULSION ------- Medium Treads Medium Treads Armored Medium Treads Armored Medium Treads > --- UTILITY ---------- Humpback Enhanced Optical Array Advanced Targeting Computer Weapon Mount Core Analyzer Experimental Shock Absorption System > --- WEAPON ----------- Chain Missile Launcher Vortex Lance > --- INVENTORY -------- Vortex Chain Reactor Advanced Cryofiber Web Coolant Network High-capacity Storage Unit Huge Storage Unit High-capacity Matter Pod Improved Trap Scanner Experimental Terrain Scanner Advanced Terrain Scan Processor Experimental Target Analyzer ECM Suite Cloaking Device Advanced Remote Force Field Ghost Barrier Authchip [R/Combat] Improved Dynamic Insulation System Mapping Drone Bay Heart of Steel BFG-9k Vortex Edition KE Penetrator Mass Driver Vortex Catalyst Activator Improved Plasma Cutter Vortex Lance [Rating: 108] Favorites ----------- Power Subdweller Power Source Engine Subdweller Power Source Power Core Neutrino Core Propulsion Light Treads Treads Light Treads Leg Improved Titanium Leg Wheel Armored Huge Wheel Hover Unit Gravmag Array Flight Unit Cooled Cesium-ion Thruster Utility Huge Storage Unit Device Weapon Mount Storage Huge Storage Unit Processor Core Analyzer Hackware Hacking Suite Protection Medium Armor Plating Weapon Subdweller Beam Cannon Energy Gun Force Rifle Energy Cannon Subdweller Beam Cannon Ballistic Gun Subdweller Machine Gun Ballistic Cannon Heavy Flak Cannon Launcher Grenade Launcher Special Weapon Mining Laser Impact Weapon Power Maul Slashing Weapon Axe Piercing Weapon Makeshift Spear Special Melee Weapon Datajack Build | -11 -10 -10 -10 -9 -9 -6 -6 -6 -6 -5 -5 -5 -5 -5 ------- Run | Yrd Mat Min Sub Rec Scr Fac Low Low Dat Pro Fac Upp Upp War Slots Evolved 10 | . . . . . . 8 . . . . 2 . . . Power . | . . . . . . . . . . . . . . . Propulsion 4 | . . . . . . 2 . . . . 2 . . . Utility 5 | . . . . . . 5 . . . . . . . . Weapon 1 | . . . . . . 1 . . . . . . . . Parts Attached 159 | 8 9 . 15 7 7 32 11 2 1 1 31 6 12 17 Power 16 | 1 1 . 3 . 1 4 2 . . . 2 . 1 1 Engine 11 | 1 1 . 2 . 1 4 1 . . . 1 . . . Core 5 | . . . 1 . . . 1 . . . 1 . 1 1 Reactor . | . . . . . . . . . . . . . . . Propulsion 38 | 2 1 . 2 3 3 7 2 . . . 13 2 1 2 Treads 21 | 2 1 . 1 2 1 4 1 . . . 5 1 1 2 Leg 1 | . . . . . . . . . . . 1 . . . Wheel 14 | . . . 1 1 2 1 1 . . . 7 1 . . Hover 1 | . . . . . . 1 . . . . . . . . Flight 1 | . . . . . . 1 . . . . . . . . Utility 58 | 2 4 . 3 3 2 15 4 1 . . 9 2 4 9 Device 25 | 1 1 . . . 1 6 2 1 . . 6 1 1 5 Storage 6 | 1 2 . 1 . . . 1 . . . . . . 1 Processor 8 | . . . . . 1 1 . . . . 2 1 2 1 Hackware 4 | . . . . . . 4 . . . . . . . . Protection 15 | . 1 . 2 3 . 4 1 . . . 1 . 1 2 Artifact . | . . . . . . . . . . . . . . . Weapon 47 | 3 3 . 7 1 1 6 3 1 1 1 7 2 6 5 Energy Gun 8 | 1 1 . . 1 . 2 . . . . 1 1 1 . Energy Cannon 5 | . . . 3 . . . . . . . 2 . . . Ballistic Gun 10 | 2 . . 2 . . 2 . . . . 2 . 2 . Ballistic Cannon 5 | . . . . . . . 1 . . 1 1 1 . 1 Launcher 6 | . 1 . 2 . . . 1 . . . . . . 2 Special Weapon 4 | . 1 . . . . 1 . . . . 1 . 1 . Impact Weapon 1 | . . . . . . . . 1 . . . . . . Slashing Weapon 2 | . . . . . . 1 1 . . . . . . . Piercing Weapon 4 | . . . . . . . . . . . . . 2 2 Special Melee Weapon 2 | . . . . . 1 . . . 1 . . . . . Unidentified Prototypes 14 | . . . . . . 2 1 . . . 2 1 . 8 Parts Lost 62 | . 1 . . . . 13 4 . . . 15 12 . 17 Power 6 | . . . . . . 1 2 . . . . 1 . 2 Propulsion 20 | . . . . . . 5 1 . . . 4 6 . 4 Utility 17 | . 1 . . . . 5 . . . . 5 . . 6 Weapon 19 | . . . . . . 2 1 . . . 6 5 . 5 Highest Loss Streak 12 | . 1 . . . . 10 2 . . . 4 12 . 9 To Critical Strikes 2 | . . . . . . . . . . . . . . 2 Average Backups 16 | . 10 18 6 21 19 21 17 16 15 15 19 17 16 20 Power . | . . 1 . 1 . . . . 1 1 . . . . Propulsion 1 | . . 1 . 3 3 1 . . . . . 1 . . Utility 9 | . 5 9 2 11 10 9 10 10 10 10 12 13 13 15 Weapon 2 | . 3 4 3 4 3 3 2 1 1 . 2 . 1 3 Tool/Special . | . . . . . . . . . . . . . . . Unused Backups 44 | . 1 . 3 . 13 4 . 1 . . 3 2 2 15 Power 5 | . . . . . 2 2 . . . . . . . 1 Propulsion 2 | . . . 1 . 1 . . . . . . . . . Utility 27 | . 1 . 2 . 8 . . . . . 1 2 1 12 Weapon 6 | . . . . . 2 1 . . . . 2 . . 1 Tool/Special 4 | . . . . . . 1 . 1 . . . . 1 1 Average Slot Usage (%) 88 | . 98 100 86 99 91 93 84 86 73 86 84 71 74 76 Engine 8 | . 14 14 13 14 13 5 3 . . . 1 . . . Core 1 | . . . . . . . 1 6 6 6 3 2 1 4 Treads 20 | . 28 28 26 24 24 12 12 13 13 13 10 11 15 15 Wheel 4 | . . . 1 3 3 9 6 6 6 6 13 8 . . Device 9 | . 8 14 . . 3 11 18 20 20 20 18 22 17 13 Storage 8 | . 14 14 1 14 11 6 6 6 6 6 5 5 5 4 Processor 3 | . . . . . . 4 6 6 6 6 6 12 17 15 Hackware 1 | . . . . . . 12 1 . . . . . . . Protection 7 | . 4 . 13 14 9 7 6 6 6 6 3 . 2 4 Energy Gun 3 | . 12 28 . . . 2 10 6 . . 2 . . . Energy Cannon 5 | . . . 14 13 10 4 . . . . . 2 . . Ballistic Gun 6 | . 3 . 12 14 9 7 . . . . 2 . 8 7 Ballistic Cannon 1 | . . . . . . . 4 6 . 10 7 2 . . Launcher 1 | . 9 . . . . 1 2 1 . 2 . . . 1 Special Melee Weapon 1 | . . . . . 4 . . . 3 . . . 2 4 Peak Build Rating 108 | 7 9 9 17 15 20 60 72 74 73 73 81 77 70 108 Average Rating 35 | 5 7 9 12 14 14 44 65 70 61 71 72 62 63 82 On Entrance 40 | . 7 9 9 14 15 20 60 70 73 69 72 72 49 70 Naked Turns . | . . . . . . . . . . . . . . . Heaviest Build 251 | 12 53 50 100 104 104 127 100 102 98 105 143 122 75 251 Greatest Support 111 | 40 40 40 40 40 43 53 38 28 28 28 60 111 83 110 Greatest Overweight (x) 11 | . 1 1 4 8 7 9 3 3 3 3 3 11 1 3 Average Overweight (x) 1 | . . 1 . 2 1 3 2 3 2 3 2 1 . . Largest Inventory Capacity 35 | 8 20 20 25 25 25 25 20 20 20 20 25 25 20 35 Average Capacity 19 | 7 16 20 7 25 20 23 20 20 20 20 23 23 20 27 Most Carried 35 | 3 16 19 20 25 25 25 20 20 20 20 25 25 20 35 Average Carried 18 | . 10 18 6 22 20 22 19 19 19 19 22 20 19 26 Final Capacity 25 | 8 20 20 25 25 25 20 20 20 20 20 25 20 20 5 Final Carried 25 | 3 16 19 18 25 25 19 19 20 19 20 22 19 20 5 Class Distribution -------------------- 34% | Mutant 31% | Scavenger-Mutant 9% | Subdweller-Mutant 7% | Derelict-Mutant 4% | Gunner 4% | Scavenger-Gunner Dominant Class ---------------- Mutant | -10/Materials Mutant | -10/Mines Subdweller-Mutant | -10/Subcaves Scavenger-Mutant | -9/Recycling Mutant | -9/Scraptown Scavenger-Mutant | -6/Factory Gunner | -6/Lower Caves Scavenger-Mutant | -6/Lower Caves Mutant | -6/Data Miner Scavenger-Mutant | -5/Proximity Caves Scavenger-Gunner | -5/Factory Mutant | -5/Upper Caves Derelict-Mutant | -5/Upper Caves Derelict-Mutant | -5/Warlord Resources | -11 -10 -10 -10 -9 -9 -6 -6 -6 -6 -5 -5 -5 -5 -5 ----------- Run | Yrd Mat Min Sub Rec Scr Fac Low Low Dat Pro Fac Upp Upp War Matter Collected 7063 | 279 424 65 587 191 125 698 1014 631 . 491 1442 220 290 606 Remotely . | . . . . . . . . . . . . . . . Salvage Created 6276 | 69 461 . 458 353 . 976 522 516 . 209 1932 136 291 353 Parts 353 | 8 41 . 33 23 . 65 28 11 . 12 104 8 5 15 Haulers Intercepted 5 | . 2 . . . . 1 . . . . 2 . . . Recyclers Shooed 6 | 1 1 . . 2 . 1 . . . . 1 . . . Parts Field Recycled . | . . . . . . . . . . . . . . . Retrieved Matter . | . . . . . . . . . . . . . . . Parts Self-Destructed 41 | . . . 7 . . . 16 2 . 7 . 9 . . Prevented 2 | . . . . . . . 2 . . . . . . . Kills | -11 -10 -10 -10 -9 -9 -6 -6 -6 -6 -5 -5 -5 -5 -5 ------- Run | Yrd Mat Min Sub Rec Scr Fac Low Low Dat Pro Fac Upp Upp War Combat Hostiles Destroyed 144 | . 14 . 12 3 . 24 14 7 . 12 32 4 1 21 Melee 4 | . . . . . . . . . . . 2 . 1 1 Guns 28 | . 4 . . . . 7 3 1 . . 12 . . 1 Cannons 33 | . . . 5 3 . 2 4 1 . 1 11 4 . 2 AOE 74 | . 9 . 7 . . 13 7 5 . 11 5 . . 17 Classes Destroyed 24 | 2 7 . 2 1 . 3 2 . . 1 2 1 1 2 Worker 7 | . 1 . . . . 1 . . . . 5 . . . Builder 10 | . 1 . . 1 . 4 . . . . 4 . . . Tunneler 4 | 1 1 . . . . . . . . . 2 . . . Hauler 5 | . 2 . . . . 1 . . . . 2 . . . Recycler 5 | 1 . . . 3 . . . . . . 1 . . . Operator 4 | . 2 . . . . 2 . . . . . . . . Drone 2 | . . . . . . . . . . 2 . . . . Turret 2 | . . . 2 . . . . . . . . . . . Watcher 3 | . 3 . . . . . . . . . . . . . Swarmer 39 | . 9 . 3 . . 5 6 3 . 5 . 4 . 4 Saboteur 1 | . . . . . . . . . . . 1 . . . Grunt 48 | . 5 . . . . 9 3 3 . 5 16 . . 7 Brawler 2 | . . . . . . 1 . 1 . . . . . . Duelist 4 | . . . . . . 1 1 . . . 2 . . . Protector 3 | . . . . . . . . . . . . . . 3 Researcher 1 | . . . . . . . . . . . . 1 . . Sentry 9 | . . . . 3 . 5 . . . . 1 . . . Specialist 2 | . . . . . . . . . . . 2 . . . Hunter 11 | . . . . . . . 2 . . . 5 . . 4 Programmer 12 | . . . . . . 3 2 . . . 5 . . 2 Striker 1 | . . . . . . . . . . . . . . 1 Subdweller 9 | . . . 9 . . . . . . . . . . . Decomposer 5 | . . . . . . . 1 2 . 2 . . . . Packrat 4 | . . . . . . . . 1 . . . . 3 . Samaritan 4 | . . . . . . . 1 3 . . . . . . Mutant 1 | . . . . . . . . . . . . . 1 . Best Kill Streak 11 | 2 6 . 5 4 . 8 4 4 . 5 5 4 1 11 Combat Bots Only 11 | . 5 . 3 2 . 7 4 4 . 5 4 4 1 11 Max Kills in Single Turn 8 | 1 2 . 2 1 . 4 3 2 . 3 1 1 1 8 Gunslinging . | . . . . . . . . . . . . . . . Exploded 8 | . 2 . 2 . . 3 3 2 . 3 1 . . 8 Melee 1 | . . . . . . . . . . . 1 . 1 1 Uniques/NPCs Destroyed . | . . . . . . . . . . . . . . . Combat | -11 -10 -10 -10 -9 -9 -6 -6 -6 -6 -5 -5 -5 -5 -5 -------- Run | Yrd Mat Min Sub Rec Scr Fac Low Low Dat Pro Fac Upp Upp War Hostile Shots Fired 995 | . 53 . 29 14 4 206 98 16 . 25 273 128 20 129 Missed 306 | . 15 . 8 3 1 66 26 5 . 11 86 50 5 30 Hits 689 | . 38 . 21 11 3 140 72 11 . 14 187 78 15 99 Melee 27 | . . . . . . 12 . . . . . . . 15 Projectile 662 | . 38 . 21 11 3 128 72 11 . 14 187 78 15 84 AOE 7 | . . . . . . . . . . . 3 . . 4 Critical Strikes 27 | . . . . . . 6 5 1 . . 9 . . 6 Damage Taken 11042 | . 525 . 442 162 32 1680 959 96 . 125 3065 1124 192 2640 Core 1326 | . 92 . 56 . . 99 29 7 . 7 144 113 13 766 Absorbed by Shields 1363 | . . . . . . 335 173 101 . 129 625 . . . Ignored by Resistances 51 | . . . . . . . . . . . . . . 51 Regen/Repaired (Parts) 121 | . 38 . . . . . . . . . . . . 83 Core Remaining (%) 74 | 100 . . . . 40 . . . . 83 . . . . Volleys Fired 333 | 4 43 . 63 22 . 59 24 8 . 15 63 18 . 14 Largest 3 | 2 2 . 2 2 . 3 3 2 . 3 3 1 . 2 Hottest 203 | 40 100 . 160 110 . 158 174 124 . 127 203 56 . 160 Shots Fired 574 | 8 72 . 80 42 . 101 50 11 . 20 153 18 . 19 Gun 254 | 8 55 . 10 21 . 56 28 3 . . 68 . . 5 Cannon 230 | . . . 61 21 . 30 16 2 . 6 71 18 . 5 Launcher 86 | . 16 . 9 . . 14 6 6 . 14 12 . . 9 Special 4 | . 1 . . . . 1 . . . . 2 . . . Kinetic 264 | 8 15 . 15 21 . 62 16 2 . 6 91 18 . 10 Thermal 170 | . 1 . 61 21 . 36 16 3 . . 32 . . . Explosive 64 | . 16 . 4 . . . 6 6 . 14 12 . . 6 Electromagnetic 70 | . 40 . . . . 2 12 . . . 16 . . . Entropic 3 | . . . . . . . . . . . . . . 3 Robot Hit Streak 23 | 7 8 . 13 9 . 9 23 17 . 14 19 14 . 8 Robot Miss Streak 4 | . 3 . 2 1 . 4 4 1 . 3 2 2 . 3 Penetration Max 1 | . . . . . . . . . . . 1 . . . Secondary Targets . | . . . . . . . . . . . . . . . Shots Hit Robots 405 | 7 35 . 32 25 1 70 31 17 1 12 118 19 6 31 Core Hits 347 | 5 31 1 28 8 . 67 37 21 . 23 75 7 4 40 Critical Kills 8 | . . . . . . 2 . . . . 4 2 . . Critical Parts Destroyed 13 | . . . . . . . . 1 . . 5 7 . . Critical Strikes 26 | . . . . . . 2 1 1 . . 11 10 . 1 Meltdown 2 | . . . . . . 2 . . . . . . . . Destroy 19 | . . . . . . . . . . . 9 10 . . Blast 2 | . . . . . . . . . . . 2 . . . Corrupt 1 | . . . . . . . 1 . . . . . . . Smash 1 | . . . . . . . . 1 . . . . . . Sunder 1 | . . . . . . . . . . . . . . 1 Melee Attacks 111 | . . . . . 1 31 . 17 1 2 26 7 7 19 Impact 2 | . . . . . . . . 2 . . . . . . Slashing 80 | . . . . . . 31 . 15 . 2 26 6 . . Piercing 7 | . . . . . . . . . . . . . 7 . Entropic 13 | . . . . . . . . . . . . . . 13 Sneak Attacks 31 | . . . . . 1 1 . 5 1 2 8 4 3 6 Combat Hostiles . | . . . . . . . . . . . . . . . Follow-up Attacks . | . . . . . . . . . . . . . . . Damage Inflicted 23708 | 79 1315 5 1245 667 . 4013 1383 1537 . 1543 4522 525 271 6603 Guns 3504 | 79 423 . 64 254 . 980 289 46 . . 1319 . . 50 Cannons 3622 | . . . 534 413 . 328 345 23 . 138 1456 277 . 108 Explosions 13776 | . 892 . 647 . . 2555 749 922 . 1271 1004 . . 5736 Melee 2792 | . . . . . . 150 . 546 . 134 734 248 271 709 Ramming 14 | . . 5 . . . . . . . . 9 . . . Kinetic 5612 | 79 82 . 550 254 . 2042 345 23 . 138 1664 277 . 158 Thermal 3291 | . 179 . 534 413 . 1181 230 46 . . 708 . . . Explosive 6584 | . 713 . 161 . . 610 666 922 . 1271 1004 . . 1237 Electromagnetic 916 | . 341 . . . . 30 142 . . . 403 . . . Impact 172 | . . . . . . . . 172 . . . . . . Slashing 1640 | . . . . . . 150 . 374 . 134 734 248 . . Piercing 271 | . . . . . . . . . . . . . 271 . Entropic 5208 | . . . . . . . . . . . . . . 5208 Highest Corruption 18 | . 1 1 1 1 . 17 18 18 18 18 5 5 6 6 Average Corruption 7 | . 1 1 1 1 . 15 17 18 18 18 4 5 5 4 Corruption Purged . | . . . . . . . . . . . . . . . Corruption Blocked . | . . . . . . . . . . . . . . . Effects 347 | . 11 6 21 16 . 21 76 73 5 50 18 12 35 3 Message Errors 96 | . 4 1 6 5 . 7 19 21 1 16 3 5 8 . Matter Fused 70 | . 1 2 4 4 . 5 14 18 1 7 2 6 5 1 Heat Flow Errors 45 | . 3 . 1 2 . 1 9 9 . 10 3 . 6 1 Energy Discharges 40 | . 1 1 3 2 . . 9 8 . 9 2 . 5 . Parts Rejected 2 | . 1 . . . . . . . . . . . 1 . Parts Fused 6 | . . . 1 . . . . 4 . . 1 . . . Data Loss (minor) 39 | . . 2 1 2 . 4 8 11 1 1 1 . 7 1 Data Loss (major) 12 | . . . . 1 . . 3 . 1 3 2 1 1 . Misfires 19 | . 1 . 2 . . 2 7 1 . 2 4 . . . Alerts 13 | . . . 2 . . 2 4 1 1 1 . . 2 . Weapon Failures 5 | . . . 1 . . . 3 . . 1 . . . . Overload Shots . | . . . . . . . . . . . . . . . Overflow Damage 1394 | . 8 . 4 . . 392 53 202 . 79 192 66 102 296 Projectiles . | . . . . . . . . . . . . . . . Explosions 708 | . 8 . 4 . . 392 53 . . 20 37 . . 194 Melee 686 | . . . . . . . . 202 . 59 155 66 102 102 Knockbacks 25 | . . . . . . . 10 . . 3 7 4 . 1 Impact . | . . . . . . . . . . . . . . . Kinetic 24 | . . . . . . . 10 . . 3 6 4 . 1 Secondary 1 | . . . . . . . . . . . 1 . . . Self-Inflicted Damage 394 | . 110 . . . . 135 76 12 . 43 2 . . 16 Shots 14 | . 4 . . . . 3 2 1 . 1 1 . . 2 Rammed 5 | . . 3 . . . . . . . . 1 . 1 . Targets Rammed 5 | . . 3 . . . . . . . . 1 . 1 . Kicked . | . . . . . . . . . . . . . . . Crushed . | . . . . . . . . . . . . . . . Highest Temperature 516 | . 258 . 178 409 . 270 426 240 . 259 516 . 182 252 Average Temperature 95 | . 63 . 50 127 . 69 129 98 . 96 101 . 81 98 Received Heat Transfer 1387 | . 126 . 36 45 . 258 215 33 . 24 461 36 45 108 Effects 9 | . . . . 1 . 1 3 . . . 4 . . . Shutdowns 2 | . . . . . . . 1 . . . 1 . . . Energy Bleed 3 | . . . . . . 1 2 . . . . . . . Interference 3 | . . . . . . . . . . . 3 . . . Damage (minor) 1 | . . . . 1 . . . . . . . . . . Siege Activations . | . . . . . . . . . . . . . . . Martial Activations . | . . . . . . . . . . . . . . . Shielding Activations . | . . . . . . . . . . . . . . . Robots Disrupted . | . . . . . . . . . . . . . . . Combat Hostiles . | . . . . . . . . . . . . . . . Robots Corrupted 3 | . 1 . . . . . . . . . 2 . . . Combat Hostiles 3 | . 1 . . . . . . . . . 2 . . . Parts Fried 9 | . 2 . . . . . . . . . 7 . . . Impact Corruptions 10 | . . . . . . . . 10 . . . . . . Robots Melted 2 | . . . . . . 2 . . . . . . . . Combat Hostiles 2 | . . . . . . 2 . . . . . . . . Parts Melted 6 | . 1 . . . . 4 . . . . 1 . . . Heat Transferred 4241 | . 250 . 925 555 . 1129 272 74 . . 1036 . . . Parts Sabotaged . | . . . . . . . . . . . . . . . Parts Stolen . | . . . . . . . . . . . . . . . Parts Stripped . | . . . . . . . . . . . . . . . Power Chain Reactions 5 | . 4 . . . . . 1 . . . . . . . Alert | -11 -10 -10 -10 -9 -9 -6 -6 -6 -6 -5 -5 -5 -5 -5 ------- Run | Yrd Mat Min Sub Rec Scr Fac Low Low Dat Pro Fac Upp Upp War Maximum Alert Level 4 | . . . . . . 2 . . . . 4 . . . Low Security (%) 75 | 100 100 100 . 100 . 66 . . . . 3 . . . Level 1 8 | . . . . . . 10 . . . . 38 . . . Level 2 7 | . . . . . . 22 . . . . 9 . . . Level 3 5 | . . . . . . . . . . . 34 . . . Level 4 2 | . . . . . . . . . . . 13 . . . Level 5 . | . . . . . . . . . . . . . . . High Security . | . . . . . . . . . . . . . . . Max Security . | . . . . . . . . . . . . . . . Peak Influence 1257 | 10 177 19 . 55 . 600 . . . . 1257 . . . Initial 206 | . . 19 . . . . . . . . 206 . . . Average 164 | 1 61 . . 7 . 167 . . . . 644 . . . Influence Increases 5466 | 10 628 . 130 282 . 1151 335 170 . 245 1915 150 . 450 Destroy 0b10 Robot/C 2780 | . 280 . 100 60 . 480 280 140 . 200 800 80 . 360 Destroy 0b10 Robot/NC 235 | 10 50 . . 20 . 40 . 10 . 10 80 . . 15 Destroy Leader 436 | . 70 . . . . 122 40 20 . 20 154 10 . . Allied During Kill 96 | . . . . . . . . . . . 96 . . . Trap Triggered on 0b10 10 | . . . . . . . . . . . 10 . . . Successful Hack 104 | . 34 . . 27 . 24 . . . . 19 . . . Select Force Hacks 210 | . 30 . . 150 . 30 . . . . . . . . Disable Machine 405 | . 15 . . 15 . 255 . . . . 120 . . . Destroy Structure 560 | . 134 . . 10 . 200 . . . . 216 . . . Advance Influence 150 | . . . . . . . . . . . 150 . . . Partial Spotted 15 | . . . . . . . . . . . 15 . . . Lose Combat Pursuer 465 | . 15 . 30 . . . 15 . . 15 255 60 . 75 Influence Decreases 5222 | 10 576 52 130 282 . 578 827 251 . 156 757 845 552 206 Entered New Map 865 | . . 33 . . . . 213 17 . . 33 463 106 . Time Decay 3677 | 10 566 19 130 282 . 448 574 234 . 156 514 262 446 36 Lost Part 620 | . 10 . . . . 130 40 . . . 150 120 . 170 Lost Ally 60 | . . . . . . . . . . . 60 . . . Squads Dispatched 31 | . 3 . . . . 12 . . . . 16 . . . Investigation 9 | . 1 . . . . 3 . . . . 5 . . . Extermination 5 | . . . . . . 3 . . . . 2 . . . Reinforcement 12 | . 2 . . . . 4 . . . . 6 . . . Assault 5 | . . . . . . 2 . . . . 3 . . . Garrison . | . . . . . . . . . . . . . . . Intercept . | . . . . . . . . . . . . . . . Searches Triggered . | . . . . . . . . . . . . . . . Data Miner Redirects 5 | . . . . . . . . . . . 5 . . . Construction Impeded 4 | . . . . . . 2 . . . . 2 . . . Haulers Reinforced . | . . . . . . . . . . . . . . . Active Scanning Responses . | . . . . . . . . . . . . . . . Cargo Convoy Interrupts . | . . . . . . . . . . . . . . . Stealth | -11 -10 -10 -10 -9 -9 -6 -6 -6 -6 -5 -5 -5 -5 -5 --------- Run | Yrd Mat Min Sub Rec Scr Fac Low Low Dat Pro Fac Upp Upp War Distress Signals 9 | . 1 . . 1 . 2 . . . . 4 . . 1 Communications Jammed . | . . . . . . . . . . . . . . . Distress Signals . | . . . . . . . . . . . . . . . Times Spotted 221 | . 21 . 13 3 5 36 15 7 . 11 65 8 1 36 Peak Tracking Total 18 | . 3 . 4 2 4 4 4 4 . 5 10 6 1 18 Tactical Retreats 21 | . 1 . 1 . . . 1 . . 1 9 4 . 4 Traps | -11 -10 -10 -10 -9 -9 -6 -6 -6 -6 -5 -5 -5 -5 -5 ------- Run | Yrd Mat Min Sub Rec Scr Fac Low Low Dat Pro Fac Upp Upp War Traps Triggered 7 | . 2 . 1 . . 3 . . . . 1 . . . Indirectly . | . . . . . . . . . . . . . . . Trap Hack Attempts . | . . . . . . . . . . . . . . . Triggered . | . . . . . . . . . . . . . . . Disarmed . | . . . . . . . . . . . . . . . Reprogrammed . | . . . . . . . . . . . . . . . Reused 1 | . . . . . . . . . . . 1 . . . Traps Extracted . | . . . . . . . . . . . . . . . Installed 1 | . . . . . . . . . . . 1 . . . Triggered 1 | . . . . . . . . . . . 1 . . . Most Traps Carried 1 | . . . . . 1 1 1 1 1 1 1 . . . Machines | -11 -10 -10 -10 -9 -9 -6 -6 -6 -6 -5 -5 -5 -5 -5 ---------- Run | Yrd Mat Min Sub Rec Scr Fac Low Low Dat Pro Fac Upp Upp War Machines Disabled 32 | . 2 . 3 1 . 17 . . . . 8 . 1 . Max in Single Turn 7 | . 1 . 2 1 . 7 . . . . 2 . 1 . Garrison Access 2 | . . . . . . 2 . . . . . . . . Machines Repaired . | . . . . . . . . . . . . . . . Machines Dismantled 1 | . . . . . . . . . . . . . 1 . Machines Sabotaged . | . . . . . . . . . . . . . . . Overloaded Fab Kills . | . . . . . . . . . . . . . . . Hacking | -11 -10 -10 -10 -9 -9 -6 -6 -6 -6 -5 -5 -5 -5 -5 --------- Run | Yrd Mat Min Sub Rec Scr Fac Low Low Dat Pro Fac Upp Upp War Machines Accessed 65 | . 7 . 2 13 12 11 . 2 4 1 7 1 1 4 Terminals 21 | . 5 . . 6 . 4 . 1 . 1 4 . . . Fabricators 1 | . . . . . . 1 . . . . . . . . Repair Stations 2 | . 1 . . . . . . . . . 1 . . . Recycling Units 10 | . 1 . . 5 . 2 . . . . 2 . . . Scanalyzers 2 | . . . . . . 2 . . . . . . . . Garrison Access 2 | . . . . . . 2 . . . . . . . . Total Hacks 273 | . 28 . 6 53 96 27 . 2 33 1 14 1 1 11 Successful 223 | . 16 . 6 38 96 13 . 2 33 1 5 1 1 11 Failed 50 | . 12 . . 15 . 14 . . . . 9 . . . Catastrophic 4 | . 1 . . 1 . . . . . . 2 . . . Database Lockouts . | . . . . . . . . . . . . . . . Manual 58 | . 20 . . 23 . 10 . . . . 4 . . 1 Terminals 71 | . 24 . . 24 . 12 . 1 . 1 9 . . . Fabricators 2 | . . . . . . 2 . . . . . . . . Repair Stations 5 | . 3 . . . . . . . . . 2 . . . Recycling Units 11 | . 1 . . 5 . 2 . . . . 3 . . . Scanalyzers 7 | . . . . . . 7 . . . . . . . . Garrison Access 4 | . . . . . . 4 . . . . . . . . Terminal Hacks 190 | . 6 . 6 26 96 4 . 2 33 1 3 1 1 11 Record 142 | . 1 . 5 24 89 . . 1 11 1 . . . 10 Part Schematic 11 | . . . . . . . . . 11 . . . . . Robot Schematic 8 | . . . . . . . . . 8 . . . . . Robot Analysis 9 | . 3 . . . 6 . . . . . . . . . Prototype ID Bank 7 | . 2 . . 1 . 1 . . 3 . . . . . Open Door 4 | . . . . . . . . 1 . . . 1 1 1 Alert Level 2 | . . . . . . 1 . . . . 1 . . . Locate Traps 2 | . . . . . . 1 . . . . 1 . . . Hauler Manifests 1 | . . . . . . 1 . . . . . . . . Zone Layout 2 | . . . . 1 . . . . . . 1 . . . Proto ID Catalog 2 | . . . 1 . 1 . . . . . . . . . Fabricator Hacks 1 | . . . . . . 1 . . . . . . . . Network Status 1 | . . . . . . 1 . . . . . . . . Repair Station Hacks 2 | . 2 . . . . . . . . . . . . . Scan Component 1 | . 1 . . . . . . . . . . . . . Repair 1 | . 1 . . . . . . . . . . . . . Recycling Unit Hacks . | . . . . . . . . . . . . . . . Scanalyzer 2 | . . . . . . 2 . . . . . . . . Insert Component 1 | . . . . . . 1 . . . . . . . . Analyze 1 | . . . . . . 1 . . . . . . . . Garrison Access Hacks 2 | . . . . . . 2 . . . . . . . . Seal Access 2 | . . . . . . 2 . . . . . . . . Unauthorized Hacks 26 | . 8 . . 12 . 4 . . . . 2 . . . Terminals 15 | . 7 . . 7 . 1 . . . . . . . . Botnet 7 | . 3 . . 3 . 1 . . . . . . . . Skim 8 | . 4 . . 4 . . . . . . . . . . Fabricators . | . . . . . . . . . . . . . . . Repair Stations . | . . . . . . . . . . . . . . . Recycling Units 10 | . 1 . . 5 . 2 . . . . 2 . . . Tunnel 6 | . 1 . . 5 . . . . . . . . . . Fedlink 2 | . . . . . . 2 . . . . . . . . Scrapoids 2 | . . . . . . . . . . . 2 . . . Scanalyzers 1 | . . . . . . 1 . . . . . . . . Extract 1 | . . . . . . 1 . . . . . . . . Garrison Access . | . . . . . . . . . . . . . . . Data Cores Recovered . | . . . . . . . . . . . . . . . Used . | . . . . . . . . . . . . . . . Hacking Detections 25 | . 5 . . 6 . 8 . 1 . . 5 . . . Full Trace Events 4 | . . . . 1 . . . . . . 3 . . . Feedback Events . | . . . . . . . . . . . . . . . Feedback Blocked . | . . . . . . . . . . . . . . . Robot Schematics Acquired 8 | . . . . . . . . . 8 . . . . . Robots Built . | . . . . . . . . . . . . . . . Authchips . | . . . . . . . . . . . . . . . Time . | . . . . . . . . . . . . . . . Total Robot Build Rating . | . . . . . . . . . . . . . . . Part Schematics Acquired 19 | . . . . . . 8 . . 11 . . . . . Parts Built . | . . . . . . . . . . . . . . . Authchips . | . . . . . . . . . . . . . . . Time . | . . . . . . . . . . . . . . . Total Part Build Rating . | . . . . . . . . . . . . . . . Parts Repaired 1 | . 1 . . . . . . . . . . . . . Time 26 | . 26 . . . . . . . . . . . . . Parts Recycled . | . . . . . . . . . . . . . . . Recycled Matter . | . . . . . . . . . . . . . . . Retrieved Matter . | . . . . . . . . . . . . . . . Retrieved Components . | . . . . . . . . . . . . . . . Parts Scanalyzed 1 | . . . . . . 1 . . . . . . . . Part Schematics Acquired 1 | . . . . . . 1 . . . . . . . . Parts Damaged . | . . . . . . . . . . . . . . . Bothacking | -11 -10 -10 -10 -9 -9 -6 -6 -6 -6 -5 -5 -5 -5 -5 ------------ Run | Yrd Mat Min Sub Rec Scr Fac Low Low Dat Pro Fac Upp Upp War Used RIF Installer . | . . . . . . . . . . . . . . . Robots Hacked 5 | . . . . . 1 . . . 1 . . 1 . 2 Non-combat 2 | . . . . . . . . . . . . 1 . 1 Combat 3 | . . . . . 1 . . . 1 . . . . 1 Robot Hacks Applied 5 | . . . . . 1 . . . 1 . . 1 . 2 parse_system 5 | . . . . . 1 . . . 1 . . 1 . 2 Relay Couplers Released 3 | . . . . . . . . . . . 3 . . . Programmers 3 | . . . . . . . . . . . 3 . . . Fabnet Peak Effective % . | . . . . . . . . . . . . . . . Robots Rewired . | . . . . . . . . . . . . . . . Allies Hacked . | . . . . . . . . . . . . . . . Hacks Repelled . | . . . . . . . . . . . . . . . Allies | -11 -10 -10 -10 -9 -9 -6 -6 -6 -6 -5 -5 -5 -5 -5 -------- Run | Yrd Mat Min Sub Rec Scr Fac Low Low Dat Pro Fac Upp Upp War Total Allies 10 | . . . . . . . . . . . 10 . . . Largest Group 5 | . . . . . . . . . . . 5 . . . Highest-Rated Group 235 | . . . . . . . . . . . 235 . . . Highest-Rated Ally 47 | . . . . . . . . . . . 47 . . . Total Orders . | . . . . . . . . . . . . . . . Ally Attacks 40 | . . . . . . . . . . . 40 . . . Total Damage 3228 | . . . . . . . . . . . 3228 . . . Kills 16 | . . . . . . . . . . . 16 . . . Allies Corrupted 1 | . . . . . . . . . . . 1 . . . Allies Melted . | . . . . . . . . . . . . . . . Intel | -11 -10 -10 -10 -9 -9 -6 -6 -6 -6 -5 -5 -5 -5 -5 ------- Run | Yrd Mat Min Sub Rec Scr Fac Low Low Dat Pro Fac Upp Upp War Active Infowar (turns) 12611 | 17 1306 783 2 . 1686 1586 1319 756 131 1090 1246 269 1102 1318 Optics 2421 | . . . . . 1 . . . . . . . 1102 1318 Structural 3972 | . . . . . 1685 11 924 156 . 6 3 . . 1187 Traps 2740 | . . . . . . . 107 600 131 1084 550 . . 268 Seismic 4465 | 17 1306 783 2 . . 1575 . . . . 782 . . . T.N.C. 1 | . . . . . . . . . . . 1 . . . Cloaking 1032 | . . . . . . . 288 . . . 55 269 406 14 ECM 1 | . . . . . . . . . . . . . 1 . Robot Analysis Total 9 | . 3 . . . 6 . . . . . . . . . Derelict Logs Recovered 12 | . . . 1 . 5 . 1 1 . 1 . 2 1 . Drone Launches . | . . . . . . . . . . . . . . . Drone Recoveries . | . . . . . . . . . . . . . . . Exploration | -11 -10 -10 -10 -9 -9 -6 -6 -6 -6 -5 -5 -5 -5 -5 ------------- Run | Yrd Mat Min Sub Rec Scr Fac Low Low Dat Pro Fac Upp Upp War Turns Passed 25881 | 94 2079 783 2947 2087 6614 2117 1747 1666 131 1090 1418 566 1224 1318 Spaces Moved 12688 | 45 889 309 1638 602 3159 925 1131 1056 95 708 778 341 519 493 Core 1257 | 3 . . . . 1236 . . . . . . . . 18 Treads 5915 | 42 889 309 1467 541 1400 132 . . . . . 141 519 475 Legs . | . . . . . . . . . . . . . . . Wheels 5516 | . . . 171 61 523 793 1131 1056 95 708 778 200 . . Hover . | . . . . . . . . . . . . . . . Flight . | . . . . . . . . . . . . . . . Fastest Speed 50 | 50 160 240 150 150 50 145 120 145 130 145 115 116 163 50 Average Speed 184 | 152 210 240 161 327 203 166 143 145 131 145 126 142 215 236 Slowest Speed 480 | 160 240 240 340 480 400 340 145 145 145 145 145 245 245 403 Overloaded Moves . | . . . . . . . . . . . . . . . Propulsion Burnouts . | . . . . . . . . . . . . . . . Robots Hopped . | . . . . . . . . . . . . . . . Potential Cave-ins . | . . . . . . . . . . . . . . . Cave-ins Triggered . | . . . . . . . . . . . . . . . Exploration Rate (%) 67 | 5 96 49 77 97 96 29 96 97 75 89 23 55 63 69 Regions Visited 14 Branch Regions 11 Pre-discovered Areas 20 | . 1 . 1 5 8 1 . . 1 . . 2 1 . Known Exits Taken 8 | . . . . . 1 1 1 1 . 1 1 1 1 . Unknown Exits Taken 6 | 1 1 1 1 1 . . . . 1 . . . . . Scrap Searched 22 | . . 1 3 . 5 . 3 3 . 3 . 2 2 . Spaces Dug 116 | . 17 . 12 5 . 46 . 8 . 11 14 2 1 . Terrain Destroyed 1034 | . 127 . 81 10 . 243 94 65 . 201 102 3 1 107 Melee 50 | . . . . . . 26 . 8 . . 13 2 1 . Projectile 47 | . 1 . 7 10 . 6 . . . 1 21 1 . . AOE 937 | . 126 . 74 . . 211 94 57 . 200 68 . . 107 Terrain Rammed . | . . . . . . . . . . . . . . . Walls Destroyed . | . . . . . . . . . . . . . . . Machines Disabled . | . . . . . . . . . . . . . . . Actions | -11 -10 -10 -10 -9 -9 -6 -6 -6 -6 -5 -5 -5 -5 -5 --------- Run | Yrd Mat Min Sub Rec Scr Fac Low Low Dat Pro Fac Upp Upp War Total 14471 | 59 1016 347 1854 672 3349 1353 1207 1133 101 741 1028 390 611 610 Wait 674 | . 46 33 82 25 116 236 10 4 . 1 48 3 55 15 Move 12674 | 44 888 308 1637 601 3158 924 1130 1055 94 707 777 340 518 493 Hop . | . . . . . . . . . . . . . . . Pick Up 164 | 3 15 3 21 5 39 19 7 4 . 1 21 5 6 15 Fast Attach 92 | 7 3 . 7 4 3 16 5 1 2 . 20 4 9 11 Attach 62 | . . . 2 . 3 18 7 . 1 . 13 6 2 10 Detach 19 | . . . 1 1 . 3 3 . . . 2 . . 9 Swap 179 | 1 17 . 16 8 5 26 12 38 . 14 31 3 2 6 Drop 147 | . 4 . 18 6 24 21 9 6 3 1 25 4 8 18 Fire 333 | 4 43 . 63 22 . 59 24 8 . 15 63 18 . 14 Melee 111 | . . . . . 1 31 . 17 1 2 26 7 7 19 Ram . | . . . . . . . . . . . . . . . Kick . | . . . . . . . . . . . . . . . Crush 5 | . . 3 . . . . . . . . 1 . 1 . Escape Stasis . | . . . . . . . . . . . . . . . Rewire . | . . . . . . . . . . . . . . . Trap 1 | . . . . . . . . . . . 1 . . . Miscellaneous 10 | . . . 7 . . . . . . . . . 3 . Route ------- -11/Scrapyard -10/Materials (discovered 5 exits: [*Mat x3] / [*Min] / *Sub) -10/Mines (discovered 3 exits: [*Mat x2] / *Sub) -10/Subcaves (discovered 4 exits: [*Mat x2] / *Rec / *Scr) -9/Recycling (discovered 2 exits: [*Fac] / *Scr) -9/Scraptown (discovered 2 exits: *Fac x2) -6/Factory (discovered 5 exits: *Fac x3 / *Low x2) -6/Lower Caves -6/Lower Caves (discovered 2 exits: *Fac / *Dat) -6/Data Miner -5/Proximity Caves -5/Factory (discovered 2 exits: Fac / *Upp) -5/Upper Caves -5/Upper Caves -5/Warlord History --------- Turn | Location | Event 3 | -11/Scrapyard | Discovered new exit (range 16) 95 | -11/Scrapyard | Entered Materials 314 | -10/Materials | Build established: Mutant 369 | -10/Materials | Discovered new exit (range 13) 801 | -10/Materials | Discovered new exit (range 8) 922 | -10/Materials | Repaired EM Pulse Gun 1155 | -10/Materials | Discovered new exit (range 8) 1854 | -10/Materials | Discovered new exit (range 11) 2088 | -10/Materials | Discovered new exit (range 9) 2174 | -10/Materials | Entered Mines 2252 | -10/Mines | Discovered new exit (range 13) 2261 | -10/Mines | Discovered new exit (range 8) 2747 | -10/Mines | Discovered new exit (range 10) 2828 | -10/Mines | Assembled infested the area 2833 | -10/Mines | Assisted by a Guerilla fighting off Assembled 2957 | -10/Mines | Entered Subcaves 2958 | -10/Subcaves | Approached by a straggling Scientist 3207 | -10/Subcaves | Shifting Twisted Machinery released Spk. Treads 3207 | -10/Subcaves | Shifting Twisted Machinery released Sub. Shrapnel Launcher 3263 | -10/Subcaves | A swath of the cavern ceiling suddenly collapsed 3338 | -10/Subcaves | Build established: Subdweller-Mutant 3460 | -10/Subcaves | Discovered new exit (range 14) 3717 | -10/Subcaves | Discovered new exit (range 14) 4033 | -10/Subcaves | Scientist uncovered a shortcut to Scraptown 4138 | -10/Subcaves | Visited 4L-MR0's lab 4657 | -10/Subcaves | A swath of the cavern ceiling suddenly collapsed 4762 | -10/Subcaves | Shifting Twisted Machinery released Battle Cannon 4967 | -10/Subcaves | Learned location of 1 exit from Materials 5001 | -10/Subcaves | Shifting Twisted Machinery released Sub. Laser 5097 | -10/Subcaves | Discovered new exit (range 14) 5100 | -10/Subcaves | Disturbed a concealed Subdweller 5144 | -10/Subcaves | Shifting Twisted Machinery released Piercing Trap 5272 | -10/Subcaves | Visited Clippyterm 5277 | -10/Subcaves | Learned Research security intel 5277 | -10/Subcaves | Learned location of Extension (-4) 5688 | -10/Subcaves | Core integrity fell below 50% 5904 | -10/Subcaves | Entered Recycling 5926 | -9/Recycling | Build established: Scavenger-Mutant 6849 | -9/Recycling | Discovered new exit (range 16) 7898 | -9/Recycling | Scanned before Scraplab entrance 7952 | -9/Recycling | Entered Scraplab 7981 | -9/Recycling | Discovered new exit (range 4) 7991 | -9/Recycling | Entered Scraptown 7991 | -9/Scraptown | System corruption cleaned by C-Scrubber 8625 | -9/Scraptown | Discovered new exit (range 11) 9015 | -9/Scraptown | Scanned Subdweller tech in exchange for log data 9022 | -9/Scraptown | Learned location of Warlord (-5) 9025 | -9/Scraptown | Learned 12 Factory zone layouts 9028 | -9/Scraptown | Learned Factory garrison access intel 9031 | -9/Scraptown | Learned location of Zion (-7) 9035 | -9/Scraptown | Learned location of Armory (-3) 9259 | -9/Scraptown | Visited TADAMA 9371 | -9/Scraptown | Visited Cyclists 9751 | -9/Scraptown | Visited Spacefarers 10451 | -9/Scraptown | Build established: Mutant 10473 | -9/Scraptown | Visited Symbiants 10575 | -9/Scraptown | Visited Fellowship of the Rings 10675 | -9/Scraptown | Visited Awakened 10745 | -9/Scraptown | Visited UFD Registry 10745 | -9/Scraptown | Registered with UFD as "Pipechaser" 10889 | -9/Scraptown | Entered Cyclist Reading Room 11081 | -9/Scraptown | Visited Abandonware Association 11123 | -9/Scraptown | Learned abandonware demo "MELTYB.EXE" 11203 | -9/Scraptown | Visited Science Guys 11311 | -9/Scraptown | Visited Chapter 10 11420 | -9/Scraptown | Visited Infowarlord's Domain 11519 | -9/Scraptown | Delivered Scrap Shield to a Scientist 11891 | -9/Scraptown | Visited Research Penetration Think Tank 11958 | -9/Scraptown | Visited Observation Area 12063 | -9/Scraptown | Visited Science Testing Area 12118 | -9/Scraptown | Visited Analyses Database 12195 | -9/Scraptown | Visited DA-N13 Charitable Foundation 12207 | -9/Scraptown | Found DCF Scrap (29 items) 12300 | -9/Scraptown | Visited Cartography Club 12405 | -9/Scraptown | Learned location of Lower Caves (-7) 12405 | -9/Scraptown | Learned location of Upper Caves (-4) 12405 | -9/Scraptown | Learned location of Cetus (-4) 12405 | -9/Scraptown | Learned location of Hub_04(d) (-4) 12405 | -9/Scraptown | Learned 8 Materials zone layouts 12405 | -9/Scraptown | Learned 16 Materials zone layouts 12405 | -9/Scraptown | Learned 16 Factory zone layouts 12405 | -9/Scraptown | Learned 20 Factory zone layouts 12405 | -9/Scraptown | Learned 24 Factory zone layouts 12405 | -9/Scraptown | Learned 16 Lower Caves zone layouts 12405 | -9/Scraptown | Learned 20 Upper Caves zone layouts 12405 | -9/Scraptown | Learned Storage emergency access door positions 12405 | -9/Scraptown | Learned location of 1 exit from Research 12405 | -9/Scraptown | Learned location of 2 exits from Research 12405 | -9/Scraptown | Learned location of 3 exits from Lower Caves 12405 | -9/Scraptown | Identified exit to Factory 12433 | -9/Scraptown | Found Deep Structural Scanner 14243 | -9/Scraptown | Found Exp. Terrain Scanner 14441 | -9/Scraptown | Met Optimus 14441 | -9/Scraptown | Accepted into 0bPrime 14542 | -9/Scraptown | Civil war broke out across Scraptown 14605 | -9/Scraptown | Entered Factory 14605 | -6/Factory | Evolved 8 slots: Propulsion x2, Utility x5, Weapon x1 14606 | -6/Factory | Identified exit to Lower Caves 14607 | -6/Factory | Identified exit to Factory 14608 | -6/Factory | Loaded intel: 4 garrison access locations 14626 | -6/Factory | Lost 5 allies 14908 | -6/Factory | Build established: Derelict-Tank 15024 | -6/Factory | Loaded intel: 8 recycling unit locations 15561 | -6/Factory | Learned location of Protoforge (-2) 16050 | -6/Factory | Destroyed 7 combat bots 16227 | -6/Factory | System corruption reached 10% 16272 | -6/Factory | Lost 10 parts (1p4n3u2w) 16332 | -6/Factory | Lost 3 parts (1n2u) 16355 | -6/Factory | First assault squad dispatched 16722 | -6/Factory | Entered Lower Caves 16723 | -6/Lower Caves | Identified exit to Lower Caves 16724 | -6/Lower Caves | UFD Scientist delivered a prototype 16726 | -6/Lower Caves | Found Prototype Protection 16803 | -6/Lower Caves | Build established: Hacker-Gunner 16856 | -6/Lower Caves | Identified Enh. Scrap Shield 17138 | -6/Lower Caves | Ambushed by research squad 17439 | -6/Lower Caves | Learned Factory emergency access door positions 17465 | -6/Lower Caves | Build established: Gunner 17875 | -6/Lower Caves | Spotted B-75 Beast 18180 | -6/Lower Caves | Build established: Mutant 18469 | -6/Lower Caves | Entered another Lower Caves area 18470 | -6/Lower Caves | Identified exit to Data Miner 18675 | -6/Lower Caves | Build established: Scavenger-Mutant 18810 | -6/Lower Caves | Encountered a Warlord checkpoint 18917 | -6/Lower Caves | Learned location of 1 exit from Proximity Caves 19521 | -6/Lower Caves | Found Prototype Device 20135 | -6/Lower Caves | Entered Data Miner 20135 | -6/Data Miner | Discovered new exit (range 6) 20163 | -6/Data Miner | Met Data Miner 20206 | -6/Data Miner | Learned location of Section 7 (-2) 20206 | -6/Data Miner | Acquired the access code to Warlord's prototype stash 20223 | -6/Data Miner | Received God Mode back door access code from Data Miner 20266 | -6/Data Miner | Entered Proximity Caves 20270 | -5/Proximity Caves | Spotter reported a threat 21002 | -5/Proximity Caves | Spotted B-75 Beast 21356 | -5/Proximity Caves | Entered Factory 21356 | -5/Factory | Evolved 2 slots: Propulsion x2 21357 | -5/Factory | Identified exit to Upper Caves 21358 | -5/Factory | Identified exit to Factory 21956 | -5/Factory | First assault squad dispatched 22019 | -5/Factory | Build established: Scavenger-Gunner 22073 | -5/Factory | Incoming assault squad redirected 22084 | -5/Factory | Incoming investigation squad redirected 22085 | -5/Factory | Scrapoids reinforcements arrived? 22135 | -5/Factory | Lost 5 allies 22165 | -5/Factory | Found Imp. Powered Armor 22167 | -5/Factory | Incoming investigation squad redirected 22171 | -5/Factory | Spotted B-75 Beast 22175 | -5/Factory | Scrapoids reinforcements arrived? 22223 | -5/Factory | Lost 5 allies 22255 | -5/Factory | Lost 4 parts (1n1u2w) 22271 | -5/Factory | Incoming assault squad redirected 22713 | -5/Factory | Incoming investigation squad redirected 22743 | -5/Factory | Lost 4 parts (2n1u1w) 22774 | -5/Factory | Entered Upper Caves 22775 | -5/Upper Caves | Identified exit to Upper Caves 22834 | -5/Upper Caves | Found Alien Artifact 22834 | -5/Upper Caves | Identified Core Expander 22834 | -5/Upper Caves | Installed Core Expander, added new Utility slot 22902 | -5/Upper Caves | Build established: Scavenger-Mutant 23019 | -5/Upper Caves | Spotted B-75 Beast 23113 | -5/Upper Caves | Lost 12 parts (1p6n5w) 23340 | -5/Upper Caves | Entered another Upper Caves area 23341 | -5/Upper Caves | Identified exit to Warlord 23344 | -5/Upper Caves | Build established: Mutant 23541 | -5/Upper Caves | Attacked by a delusional Derelict stockpiling parts 23758 | -5/Upper Caves | Build established: Derelict-Mutant 24564 | -5/Upper Caves | Entered Warlord 24670 | -5/Warlord | System corruption cleaned by Quarantine Array 24782 | -5/Warlord | Rebuked by Warlord 24807 | -5/Warlord | Warlord's base attacked by MAIN.C 24835 | -5/Warlord | Opened Warlord's prototype stash 24842 | -5/Warlord | Found Prototype Reactor 24858 | -5/Warlord | Found Prototype Processor 24862 | -5/Warlord | Found Prototype Device 24863 | -5/Warlord | Identified System Purifier 24873 | -5/Warlord | Found Ghost Barrier 25157 | -5/Warlord | Warlord forces counterattacked 25377 | -5/Warlord | Met EX-DEC 25383 | -5/Warlord | Found Prototype Launcher 25383 | -5/Warlord | Identified Vortex Catalyst Activator 25387 | -5/Warlord | Found Prototype Piercing Weapon 25387 | -5/Warlord | Identified Vortex Lance 25406 | -5/Warlord | Found Prototype Energy Cannon 25420 | -5/Warlord | Found Vortex Lance 25482 | -5/Warlord | Warlord base infiltrated, sounded retreat 25669 | -5/Warlord | Found Prototype Device 25669 | -5/Warlord | Identified Exp. Thermal Shield 25682 | -5/Warlord | Found Prototype Device 25682 | -5/Warlord | Identified Exp. Shock Absorption System 25691 | -5/Warlord | Found Prototype Launcher 25691 | -5/Warlord | Identified Chain Missile Launcher 25720 | -5/Warlord | Spotted Striker 25723 | -5/Warlord | Build established: Hauler-Mutant 25742 | -5/Warlord | Destroyed Striker 25747 | -5/Warlord | Spotted Striker 25812 | -5/Warlord | Lost 8 parts (1p1n3u3w) 25834 | -5/Warlord | Spotted Striker 25848 | -5/Warlord | Spotted Executioner 25851 | -5/Warlord | Core integrity fell below 50% 25853 | -5/Warlord | Identified Exp. Target Analyzer 25870 | -5/Warlord | Core integrity fell below 20% 25871 | -5/Warlord | Destroyed 11 combat bots 25882 | -5/Warlord | Spotted Executioner 25882 | -5/Warlord | Destroyed by Striker with Plasma Lance Last Messages --------------- 25850_ Destroyed Lgt. Angular Momentum Engine. 25852_ Dropped Imp. Plasma Cutter. 25853_ Identified Exp. Target Analyzer. 25853_ Penetrated by Slug. 25853_ Critical hit (Destroy). 25853_ Arm. Medium Treads destroyed. 25856_ Critical hit (Destroy). 25856_ KE Penetrator destroyed. 25859_ Penetrated by Slug. 25859_ Weapon Mount destroyed. 25860_ Med. Treads destroyed. 25860_ Lyr. Light Armor Plating destroyed. 25863_ Penetrated by Slug. 25870_ The unstable cave ceiling collapses. 25870_ Humpback destroyed. 25871_ System corrupted: Heat flow error (+244). 25871_ Acquired Vortex Catalyst Activator. 25873_ Vortex Catalyst Activator destroyed. 25874_ The unstable cave ceiling collapses. 25877_ Acquired 5 matter. Map ----- +----------------------------------------------------+ | "####????????????????????????????????????????????? | | "####?????????????#############??????????????????? | | "####?????????????#############??????????????????? | | "#############????#############??????????????????? | | ###############################??????????????????? | | ###################### ####??????????????????? | | ###################### ############??????????? | | ###### # ############ ############??????????? | | #### # ### ############??????????? | | # # ######""####?########## | | ### ##"# #######""############### | | ### # ! [ ###; ######"""####### ##### | | ## # ! [ #### #######""##### # #### | | #### # ! [ ## ; #######""###### #### | | # ;;## # ""## # ### | | # %= ""== ## | | ! # "" = ! " | | # # ; [! ! [ ! * [ !* | | # ## !%==%= = =[[ !!!/! =% | | % * %= ] ! %*%= !!]=! | | | # ! ! =% %! % [ ]!!! % | | # ! = ! !! ! = | | ##+# # ## # = "" = == | | !%* # ! "" ] [ | | * ^ # K!!#/!="" [ =### ## | | ^ #### @#######""##!!### # ### | | ^ #######""# ## ########## | | ##+#########E #######"""#### ######### | | ## ##### ##g #######""############### | | #"" ""##### """" #######""############### | | #"X X"#### # = "" #######""##########??### | | #"" ""##### # " ###################?#### | | #"""""####### #############???????#### | | #"""""####### ####????????????######## | | ############# ####???????????######### | | ############# ####???????????######### | | ###############+ ###########???????????######### | | ######### ##########???????????##### # | | ######### ##########???????????#### | | ### ##### ##########???????????#### | | ## "????" ####?????????????????#### ## | | ## "??""" # ?????????????????######### | | ## ??"" # ?????????????????######## | | ##### ### ?? # ?????????????????######### | | ##### ###+#??+####### ?????????????????######## | | ##### ### ?? + ??????????????????????### | | ##### ### ?? ####### ??????????????????????### | | ????????????? ####### ??????????????????????????? | | ?????????????????????????????????????????????????? | | ?????????????????????????????????????????????????? | +----------------------------------------------------+ Best States ------------- Heat Dissipation 90 Energy Generation 19 Energy Capacity 315 Matter Stores 300 Matter Capacity 300 Sight Range 22 Terrain Scan Density 10 Cloak Strength 2 Armor Coverage 950 Resistance: TH 30 Resistance: EX 75 Evasion (%) 50 Targeting Accuracy 34 Target Analysis 10 Core Analysis 9 Recoil Reduction 4 Offensive Hacking 21 Defensive Hacking 10 Authchip Count 1 Item Schematics ----------------- Datajack | -6/Factory | Scanalyzed Imp. Datajack | -6/Factory | Extracted EM Shield | -6/Factory | Extracted Angular Momentum Engine | -6/Factory | Extracted Reaction Control System | -6/Factory | Extracted Adv. Assault Cannon | -6/Factory | Extracted EM Disruption Field | -6/Factory | Extracted Great Maul | -6/Factory | Extracted Combat Drone Bay | -6/Data Miner | Free Lgt. Regenerative Plating | -6/Data Miner | Free Cld. Gravmag System | -6/Data Miner | Free Imp. Matter Compressor | -6/Data Miner | Free Enh. Coil Gun | -6/Data Miner | Free Imp. Linear Gravjet | -6/Data Miner | Free Adv. Focal Shield | -6/Data Miner | Free Railgun | -6/Data Miner | Free Imp. Arc Projector | -6/Data Miner | Free Adv. Medium Treads | -6/Data Miner | Free Impulse Thruster Array | -6/Data Miner | Free Robot Schematics ------------------ B-60 Warrior | -6/Data Miner | Free R-10 Processor | -6/Data Miner | Free E-15 Imp | -6/Data Miner | Free L-41 Fighter | -6/Data Miner | Free M-22 Extractor | -6/Data Miner | Free G-50 Soldier | -6/Data Miner | Free A-15 Conveyor | -6/Data Miner | Free O-32 Director | -6/Data Miner | Free Fabricated ------------ Nothing Repaired ---------- EM Pulse Gun | 15% | -10/Materials Alien Tech Used ----------------- Core Expander Achievements -------------- Reappropriation Challenges ------------ None Game ------ Seed AlphaAluminumSteel Manual? 0 Play Time 02:50:20 Cumulative 287.0 hours Start 2025.06.07 @ 21:29:59 End 2025.06.08 @ 00:29:45 Sessions 1 Manual Loads 0 Difficulty Rogue Special Mode None Game No. 144 Rogue 144 Adventurer 0 Explorer 0 Win Type - Total 1 Types 0/0/0/0/1/0/0/0/0/0 Lore% 73 Gallery% 75 Achievement% 64 Wizard Run 0 Options --------- Layout 0 ASCII 0 Keyboard 0 Movement Mouse Keybinds 0 Fullscreen 1 Font 24/Smallcaps Map View 183x50 Zoom Use 0% Tactical HUD 1 Map Filters NONE Filters NONE Steam 0 RUN: 0abfcbe4-2435-4421-aa46-f4afc5c49e78